[Event "Titled Tuesday Blitz December 06 Early 2022"]
[White "Slovineanu"]
[Black "Gulevich, Artem"]
[BlackFideId "24119580"]
[WhiteElo "2200"]
[BlackElo "2218"]
[Result "1-0"]
[Round "01"]
[TimeControl "180+1"]
[Date "2022.12.07"]
[WhiteClock "0:00:05"]
[BlackClock "0:00:06"]

1. d4 {[%clk 0:02:38]}  d5 {[%clk 0:00:42]} 2. Nf3 {[%clk 0:02:37]}  Nf6 {[%clk 0:00:42]} 3. c4 {[%clk 0:02:36]}  c6 {[%clk 0:00:42]} 4. e3 {[%clk 0:02:36]}  e6 {[%clk 0:00:43]} 5. Nbd2 {[%clk 0:02:35]}  Bd6 {[%clk 0:00:42]} 6. Bd3 {[%clk 0:02:35]}  Nbd7 {[%clk 0:00:42]} 7. O-O {[%clk 0:02:35]}  O-O {[%clk 0:00:42]} 8. e4 {[%clk 0:02:35]}  dxe4 {[%clk 0:00:43]} 9. Nxe4 {[%clk 0:02:36]}  Nxe4 {[%clk 0:00:44]} 10. Bxe4 {[%clk 0:02:36]}  h6 {[%clk 0:00:44]} 11. Bc2 {[%clk 0:02:31]}  e5 {[%clk 0:00:45]} 12. b3 {[%clk 0:01:31]}  f5 {[%clk 0:00:44]} 13. dxe5 {[%clk 0:01:30]}  Nxe5 {[%clk 0:00:43]} 14. Bb2 {[%clk 0:01:27]}  Nxf3+ {[%clk 0:00:43]} 15. Qxf3 {[%clk 0:01:25]}  Qc7 {[%clk 0:00:43]} 16. h3 {[%clk 0:01:19]}  Be6 {[%clk 0:00:43]} 17. Rfe1 {[%clk 0:01:14]}  Rae8 {[%clk 0:00:43]} 18. Re2 {[%clk 0:01:03]}  Bc8 {[%clk 0:00:43]} 19. Rae1 {[%clk 0:01:02]}  Rxe2 {[%clk 0:00:43]} 20. Qxe2 {[%clk 0:01:00]}  Bd7 {[%clk 0:00:41]} 21. Qf3 {[%clk 0:00:52]}  Bc5 {[%clk 0:00:38]} 22. Qc3 {[%clk 0:00:46]}  Bc8 {[%clk 0:00:37]} 23. b4 {[%clk 0:00:44]}  Bd6 {[%clk 0:00:35]} 24. c5 {[%clk 0:00:42]}  Bh2+ {[%clk 0:00:35]} 25. Kh1 {[%clk 0:00:40]}  Bf4 {[%clk 0:00:36]} 26. Bb3+ {[%clk 0:00:33]}  Kh7 {[%clk 0:00:32]} 27. a3 {[%clk 0:00:26]}  Bg5 {[%clk 0:00:32]} 28. Qf3 {[%clk 0:00:21]}  a5 {[%clk 0:00:26]} 29. Qe2 {[%clk 0:00:15]}  axb4 {[%clk 0:00:25]} 30. axb4 {[%clk 0:00:16]}  b6 {[%clk 0:00:21]} 31. Be6 {[%clk 0:00:15]}  Bxe6 {[%clk 0:00:19]} 32. Qxe6 {[%clk 0:00:15]}  bxc5 {[%clk 0:00:15]} 33. bxc5 {[%clk 0:00:16]}  Kh8 {[%clk 0:00:14]} 34. Qd6 {[%clk 0:00:15]}  Qxd6 {[%clk 0:00:11]} 35. cxd6 {[%clk 0:00:15]}  Rd8 {[%clk 0:00:11]} 36. Be5 {[%clk 0:00:14]}  Kg8 {[%clk 0:00:09]} 37. f4 {[%clk 0:00:14]}  Bf6 {[%clk 0:00:06]} 38. Rc1 {[%clk 0:00:11]}  Rc8 {[%clk 0:00:04]} 39. g4 {[%clk 0:00:10]}  fxg4 {[%clk 0:00:03]} 40. hxg4 {[%clk 0:00:10]}  Kf7 {[%clk 0:00:04]} 41. Kg2 {[%clk 0:00:10]}  Bxe5 {[%clk 0:00:04]} 42. fxe5 {[%clk 0:00:10]}  Ke6 {[%clk 0:00:05]} 43. Re1 {[%clk 0:00:09]}  c5 {[%clk 0:00:06]} 44. Kf3 {[%clk 0:00:09]}  c4 {[%clk 0:00:06]} 45. Ke4 {[%clk 0:00:05]}  c3 {[%clk 0:00:07]} 46. Rc1 {[%clk 0:00:05]}  Rc4+ {[%clk 0:00:06]} 47. Kd3 {[%clk 0:00:06]}  Rc5 {[%clk 0:00:06]} 48. Rxc3 {[%clk 0:00:05]}  Rxe5 {[%clk 0:00:06]} 49. Rc7 {[%clk 0:00:02]}  Rd5+ {[%clk 0:00:05]} 50. Ke4 {[%clk 0:00:02]}  g5 {[%clk 0:00:02]} 51. Rh7 {[%clk 0:00:02]}  Rxd6 {[%clk 0:00:02]} 52. Rxh6+ {[%clk 0:00:02]}  Ke7 {[%clk 0:00:03]} 53. Rxd6 {[%clk 0:00:03]}  Kxd6 {[%clk 0:00:04]} 54. Kf5 {[%clk 0:00:03]}  Ke7 {[%clk 0:00:05]} 55. Kxg5 {[%clk 0:00:04]}  Kf7 {[%clk 0:00:06]} 56. Kh6 {[%clk 0:00:04]}  Kg8 {[%clk 0:00:06]} 57. Kg6 {[%clk 0:00:05]} 1-0


[Site "https://www.chess.com"]

[Event "Titled Tuesday Blitz December 06 Early 2022"]
[White "Suduvasachmatai"]
[Black "Decuigniere, Tom"]
[BlackFideId "26093820"]
[WhiteElo "1862"]
[BlackElo "2288"]
[Result "0-1"]
[Round "01"]
[TimeControl "180+1"]
[Date "2022.12.07"]
[WhiteClock "0:00:11"]
[BlackClock "0:00:07"]

1. e4 {[%clk 0:02:44]}  c5 {[%clk 0:02:59]} 2. c3 {[%clk 0:02:38]}  Nf6 {[%clk 0:02:53]} 3. e5 {[%clk 0:01:55]}  Nd5 {[%clk 0:02:49]} 4. d4 {[%clk 0:01:55]}  cxd4 {[%clk 0:02:47]} 5. cxd4 {[%clk 0:01:54]}  Nc6 {[%clk 0:02:27]} 6. Nf3 {[%clk 0:01:52]}  g6 {[%clk 0:02:13]} 7. Bc4 {[%clk 0:01:48]}  Nb6 {[%clk 0:02:13]} 8. Bb3 {[%clk 0:01:47]}  Bg7 {[%clk 0:02:13]} 9. O-O {[%clk 0:01:46]}  O-O {[%clk 0:02:13]} 10. Nc3 {[%clk 0:01:45]}  d6 {[%clk 0:02:13]} 11. exd6 {[%clk 0:01:30]}  Qxd6 {[%clk 0:02:14]} 12. h3 {[%clk 0:01:25]}  Nxd4 {[%clk 0:02:13]} 13. Nxd4 {[%clk 0:01:21]}  Qxd4 {[%clk 0:02:13]} 14. Be3 {[%clk 0:01:18]}  Qxd1 {[%clk 0:02:11]} 15. Raxd1 {[%clk 0:01:18]}  Bf5 {[%clk 0:01:44]} 16. Bxb6 {[%clk 0:01:08]}  axb6 {[%clk 0:01:42]} 17. Nd5 {[%clk 0:01:08]}  Rae8 {[%clk 0:01:13]} 18. Nxb6 {[%clk 0:01:03]}  Bxb2 {[%clk 0:01:10]} 19. Nd7 {[%clk 0:01:01]}  Bxd7 {[%clk 0:01:05]} 20. Rxd7 {[%clk 0:01:01]}  b6 {[%clk 0:01:00]} 21. Rfd1 {[%clk 0:00:56]}  Ba3 {[%clk 0:00:56]} 22. Rb7 {[%clk 0:00:51]}  Bc5 {[%clk 0:00:55]} 23. Rd3 {[%clk 0:00:37]}  Rd8 {[%clk 0:00:53]} 24. Rdd7 {[%clk 0:00:32]}  Rxd7 {[%clk 0:00:51]} 25. Rxd7 {[%clk 0:00:32]}  Rc8 {[%clk 0:00:51]} 26. g3 {[%clk 0:00:31]}  Kf8 {[%clk 0:00:43]} 27. Rb7 {[%clk 0:00:30]}  Rd8 {[%clk 0:00:40]} 28. Kg2 {[%clk 0:00:30]}  Rd2 {[%clk 0:00:38]} 29. Rb8+ {[%clk 0:00:26]}  Kg7 {[%clk 0:00:38]} 30. Kh1 {[%clk 0:00:24]}  Rxf2 {[%clk 0:00:37]} 31. h4 {[%clk 0:00:20]}  h5 {[%clk 0:00:34]} 32. Rb7 {[%clk 0:00:18]}  e5 {[%clk 0:00:32]} 33. Kg1 {[%clk 0:00:17]}  Rxa2+ {[%clk 0:00:28]} 34. Kh1 {[%clk 0:00:16]}  Rf2 {[%clk 0:00:28]} 35. Bd5 {[%clk 0:00:15]}  Rf6 {[%clk 0:00:17]} 36. Kg2 {[%clk 0:00:16]}  Rf2+ {[%clk 0:00:12]} 37. Kh3 {[%clk 0:00:16]}  Kf8 {[%clk 0:00:11]} 38. g4 {[%clk 0:00:15]}  hxg4+ {[%clk 0:00:11]} 39. Kxg4 {[%clk 0:00:16]}  Rf4+ {[%clk 0:00:11]} 40. Kg5 {[%clk 0:00:17]}  Kg7 {[%clk 0:00:12]} 41. h5 {[%clk 0:00:16]}  Rf5+ {[%clk 0:00:13]} 42. Kg4 {[%clk 0:00:16]}  Rf4+ {[%clk 0:00:09]} 43. Kg5 {[%clk 0:00:16]}  Rf5+ {[%clk 0:00:08]} 44. Kg4 {[%clk 0:00:16]}  Rxh5 {[%clk 0:00:09]} 45. Rxf7+ {[%clk 0:00:15]}  Kh6 {[%clk 0:00:09]} 46. Rf6 {[%clk 0:00:15]}  Rg5+ {[%clk 0:00:10]} 47. Kh4 {[%clk 0:00:16]}  Be7 {[%clk 0:00:08]} 48. Re6 {[%clk 0:00:14]}  Bd8 {[%clk 0:00:09]} 49. Kh3 {[%clk 0:00:15]}  Rh5+ {[%clk 0:00:08]} 50. Kg2 {[%clk 0:00:14]}  Rg5+ {[%clk 0:00:09]} 51. Kf3 {[%clk 0:00:14]}  Rf5+ {[%clk 0:00:10]} 52. Ke3 {[%clk 0:00:15]}  Bf6 {[%clk 0:00:10]} 53. Re8 {[%clk 0:00:15]}  Kg5 {[%clk 0:00:10]} 54. Be4 {[%clk 0:00:15]}  Rf4 {[%clk 0:00:11]} 55. Rg8 {[%clk 0:00:15]}  Be7 {[%clk 0:00:06]} 56. Rxg6+ {[%clk 0:00:15]}  Kh5 {[%clk 0:00:07]} 57. Rg7 {[%clk 0:00:15]}  Bc5+ {[%clk 0:00:07]} 58. Kd3 {[%clk 0:00:15]}  Kh4 {[%clk 0:00:06]} 59. Rh7+ {[%clk 0:00:15]}  Kg3 {[%clk 0:00:06]} 60. Rg7+ {[%clk 0:00:15]}  Kf2 {[%clk 0:00:05]} 61. Rg2+ {[%clk 0:00:15]}  Kf1 {[%clk 0:00:06]} 62. Rc2 {[%clk 0:00:15]}  Bd4 {[%clk 0:00:06]} 63. Bg2+ {[%clk 0:00:15]}  Kg1 {[%clk 0:00:06]} 64. Be4 {[%clk 0:00:16]}  Rh4 {[%clk 0:00:04]} 65. Rc1+ {[%clk 0:00:16]}  Kh2 {[%clk 0:00:04]} 66. Rh1+ {[%clk 0:00:15]}  Kg3 {[%clk 0:00:05]} 67. Rxh4 {[%clk 0:00:13]}  Kxh4 {[%clk 0:00:06]} 68. Kc4 {[%clk 0:00:13]}  Kg3 {[%clk 0:00:05]} 69. Kd5 {[%clk 0:00:13]}  Kf4 {[%clk 0:00:05]} 70. Bd3 {[%clk 0:00:13]}  Ke3 {[%clk 0:00:05]} 71. Bf1 {[%clk 0:00:11]}  e4 {[%clk 0:00:01]} 72. Kc4 {[%clk 0:00:11]}  Bc5 {[%clk 0:00:01]} 73. Kd5 {[%clk 0:00:09]}  Kf4 {[%clk 0:00:02]} 74. Be2 {[%clk 0:00:09]}  e3 {[%clk 0:00:02]} 75. Kc4 {[%clk 0:00:09]}  Kg3 {[%clk 0:00:03]} 76. Kd3 {[%clk 0:00:09]}  Kf2 {[%clk 0:00:04]} 77. Bh5 {[%clk 0:00:09]}  b5 {[%clk 0:00:05]} 78. Kc3 {[%clk 0:00:08]}  b4+ {[%clk 0:00:05]} 79. Kc4 {[%clk 0:00:07]}  e2 {[%clk 0:00:05]} 80. Bxe2 {[%clk 0:00:07]}  Kxe2 {[%clk 0:00:05]} 81. Kb3 {[%clk 0:00:08]}  Kd3 {[%clk 0:00:06]} 82. Kb2 {[%clk 0:00:08]}  Kc4 {[%clk 0:00:05]} 83. Kc2 {[%clk 0:00:08]}  b3+ {[%clk 0:00:05]} 84. Kb2 {[%clk 0:00:08]}  Bd4+ {[%clk 0:00:06]} 85. Kb1 {[%clk 0:00:09]}  Kc3 {[%clk 0:00:04]} 86. Kc1 {[%clk 0:00:09]}  b2+ {[%clk 0:00:04]} 87. Kb1 {[%clk 0:00:10]}  Be5 {[%clk 0:00:05]} 88. Ka2 {[%clk 0:00:09]}  Kc2 {[%clk 0:00:06]} 89. Ka3 {[%clk 0:00:10]}  b1=Q {[%clk 0:00:06]} 90. Ka4 {[%clk 0:00:10]}  Kc3 {[%clk 0:00:06]} 91. Ka5 {[%clk 0:00:09]}  Kc4 {[%clk 0:00:06]} 92. Ka6 {[%clk 0:00:10]}  Kc5 {[%clk 0:00:07]} 93. Ka7 {[%clk 0:00:11]}  Kc6 {[%clk 0:00:07]} 94. Ka8 {[%clk 0:00:11]}  Qb7# {[%clk 0:00:07]} 0-1


[Site "https://www.chess.com"]

[Event "Titled Tuesday Blitz December 06 Early 2022"]
[White "Tarnowska, Aleksandra"]
[Black "Bagrationi, Alexander"]
[WhiteFideId "1180967"]
[BlackFideId "14104954"]
[WhiteElo "1776"]
[BlackElo "2398"]
[Result "0-1"]
[Round "01"]
[TimeControl "180+1"]
[Date "2022.12.07"]
[WhiteClock "0:00:06"]
[BlackClock "0:00:11"]

1. e4 {[%clk 0:02:41]}  c5 {[%clk 0:02:25]} 2. Nf3 {[%clk 0:02:37]}  Nc6 {[%clk 0:02:18]} 3. Bb5 {[%clk 0:02:35]}  g6 {[%clk 0:02:12]} 4. O-O {[%clk 0:02:30]}  Bg7 {[%clk 0:02:06]} 5. c3 {[%clk 0:02:20]}  e5 {[%clk 0:02:06]} 6. d3 {[%clk 0:02:08]}  Nge7 {[%clk 0:02:05]} 7. Re1 {[%clk 0:02:07]}  O-O {[%clk 0:02:00]} 8. Nbd2 {[%clk 0:02:07]}  d6 {[%clk 0:01:56]} 9. h3 {[%clk 0:02:06]}  h6 {[%clk 0:01:56]} 10. Nf1 {[%clk 0:02:06]}  Kh7 {[%clk 0:01:56]} 11. Ng3 {[%clk 0:02:07]}  f5 {[%clk 0:01:54]} 12. exf5 {[%clk 0:02:05]}  Nxf5 {[%clk 0:01:54]} 13. Nxf5 {[%clk 0:01:57]}  gxf5 {[%clk 0:01:44]} 14. Nh2 {[%clk 0:01:33]}  Qe8 {[%clk 0:01:40]} 15. d4 {[%clk 0:01:25]}  cxd4 {[%clk 0:01:08]} 16. cxd4 {[%clk 0:01:21]}  Qg6 {[%clk 0:01:07]} 17. Bxc6 {[%clk 0:01:08]}  bxc6 {[%clk 0:01:07]} 18. dxe5 {[%clk 0:01:09]}  dxe5 {[%clk 0:01:04]} 19. Nf3 {[%clk 0:01:10]}  e4 {[%clk 0:01:00]} 20. Nh4 {[%clk 0:01:07]}  Qf6 {[%clk 0:00:59]} 21. Qh5 {[%clk 0:01:06]}  Bd7 {[%clk 0:00:54]} 22. g3 {[%clk 0:00:49]}  Be8 {[%clk 0:00:53]} 23. Qe2 {[%clk 0:00:47]}  Rg8 {[%clk 0:00:52]} 24. Ng2 {[%clk 0:00:46]}  Bf7 {[%clk 0:00:51]} 25. Nf4 {[%clk 0:00:40]}  Qe5 {[%clk 0:00:46]} 26. Rb1 {[%clk 0:00:37]}  Bf8 {[%clk 0:00:46]} 27. Kh1 {[%clk 0:00:36]}  Rd8 {[%clk 0:00:40]} 28. Bd2 {[%clk 0:00:34]}  Bxa2 {[%clk 0:00:34]} 29. Bc3 {[%clk 0:00:34]}  Qc5 {[%clk 0:00:21]} 30. Ra1 {[%clk 0:00:32]}  Bc4 {[%clk 0:00:21]} 31. Qh5 {[%clk 0:00:24]}  Rg5 {[%clk 0:00:14]} 32. Qh4 {[%clk 0:00:15]}  Qxf2 {[%clk 0:00:13]} 33. Red1 {[%clk 0:00:09]}  Qf3+ {[%clk 0:00:12]} 34. Kh2 {[%clk 0:00:07]}  Rxd1 {[%clk 0:00:12]} 35. Rxa7+ {[%clk 0:00:07]}  Bg7 {[%clk 0:00:11]} 36. Nh5 {[%clk 0:00:06]}  Rh1# {[%clk 0:00:11]} 0-1


[Site "https://www.chess.com"]

[Event "Titled Tuesday Blitz December 06 Early 2022"]
[White "Tay, Junior"]
[Black "Tarlabasi, Emirhan"]
[WhiteFideId "5800439"]
[BlackFideId "6350275"]
[WhiteElo "2216"]
[BlackElo "2200"]
[Result "1-0"]
[Round "01"]
[TimeControl "180+1"]
[Date "2022.12.07"]
[WhiteClock "0:01:58"]
[BlackClock "0:00:26"]

1. e4 {[%clk 0:02:50]}  c5 {[%clk 0:00:45]} 2. Nf3 {[%clk 0:02:48]}  e6 {[%clk 0:00:46]} 3. d4 {[%clk 0:02:48]}  cxd4 {[%clk 0:00:47]} 4. Bg5 {[%clk 0:02:48]}  Qb6 {[%clk 0:00:45]} 5. Qxd4 {[%clk 0:02:47]}  Bc5 {[%clk 0:00:46]} 6. Qxg7 {[%clk 0:02:46]}  Bxf2+ {[%clk 0:00:45]} 7. Ke2 {[%clk 0:02:47]}  h6 {[%clk 0:00:31]} 8. Qxh8 {[%clk 0:02:39]}  hxg5 {[%clk 0:00:31]} 9. Qxg8+ {[%clk 0:02:39]}  Ke7 {[%clk 0:00:32]} 10. Qxg5+ {[%clk 0:02:39]}  Ke8 {[%clk 0:00:33]} 11. Ne5 {[%clk 0:02:07]}  f6 {[%clk 0:00:26]} 12. Qg8+ {[%clk 0:02:05]}  Ke7 {[%clk 0:00:26]} 13. Qf7+ {[%clk 0:01:59]}  Kd6 {[%clk 0:00:26]} 14. Nc4+ {[%clk 0:01:58]} 1-0


[Site "https://www.chess.com"]

[Event "Titled Tuesday Blitz December 06 Early 2022"]
[White "Tsyhanchuk, Stanislav"]
[Black "Gabdrakhmanov, Azat"]
[WhiteFideId "13505130"]
[BlackFideId "34189197"]
[WhiteElo "2173"]
[BlackElo "2254"]
[Result "1-0"]
[Round "01"]
[TimeControl "180+1"]
[Date "2022.12.07"]
[WhiteClock "0:00:53"]
[BlackClock "0:00:05"]

1. e4 {[%clk 0:02:58]}  c5 {[%clk 0:02:50]} 2. Nf3 {[%clk 0:02:58]}  e6 {[%clk 0:01:34]} 3. c4 {[%clk 0:02:57]}  d6 {[%clk 0:01:34]} 4. d4 {[%clk 0:02:57]}  cxd4 {[%clk 0:01:34]} 5. Nxd4 {[%clk 0:02:57]}  Nf6 {[%clk 0:01:34]} 6. Nc3 {[%clk 0:02:57]}  Be7 {[%clk 0:01:34]} 7. Be3 {[%clk 0:02:57]}  O-O {[%clk 0:01:35]} 8. f3 {[%clk 0:02:55]}  a6 {[%clk 0:01:35]} 9. Qd2 {[%clk 0:02:54]}  b6 {[%clk 0:01:36]} 10. Be2 {[%clk 0:02:52]}  Bb7 {[%clk 0:01:36]} 11. O-O {[%clk 0:02:50]}  Nbd7 {[%clk 0:01:37]} 12. b4 {[%clk 0:02:45]}  Rc8 {[%clk 0:01:36]} 13. Nb3 {[%clk 0:02:32]}  Qc7 {[%clk 0:01:31]} 14. Rac1 {[%clk 0:02:21]}  Qb8 {[%clk 0:01:31]} 15. a3 {[%clk 0:02:20]}  Bd8 {[%clk 0:01:29]} 16. g4 {[%clk 0:02:08]}  Bc7 {[%clk 0:01:28]} 17. g5 {[%clk 0:01:38]}  Ne8 {[%clk 0:01:27]} 18. f4 {[%clk 0:01:36]}  Qa8 {[%clk 0:01:12]} 19. Bf3 {[%clk 0:01:33]}  g6 {[%clk 0:01:02]} 20. Qg2 {[%clk 0:01:29]}  Ng7 {[%clk 0:01:02]} 21. h4 {[%clk 0:01:27]}  f5 {[%clk 0:00:37]} 22. exf5 {[%clk 0:01:26]}  Bxf3 {[%clk 0:00:38]} 23. Qxf3 {[%clk 0:01:27]}  Nxf5 {[%clk 0:00:32]} 24. Qxa8 {[%clk 0:01:24]}  Rxa8 {[%clk 0:00:32]} 25. Bf2 {[%clk 0:01:22]}  Rfb8 {[%clk 0:00:27]} 26. Ne4 {[%clk 0:01:18]}  Bd8 {[%clk 0:00:24]} 27. Rfd1 {[%clk 0:01:15]}  Be7 {[%clk 0:00:25]} 28. Nd4 {[%clk 0:01:13]}  Nxd4 {[%clk 0:00:24]} 29. Rxd4 {[%clk 0:01:14]}  Kf7 {[%clk 0:00:24]} 30. Nxd6+ {[%clk 0:01:14]}  Bxd6 {[%clk 0:00:25]} 31. Rxd6 {[%clk 0:01:15]}  Nf8 {[%clk 0:00:26]} 32. Rxb6 {[%clk 0:01:14]}  Rd8 {[%clk 0:00:25]} 33. Rb7+ {[%clk 0:01:13]}  Kg8 {[%clk 0:00:26]} 34. c5 {[%clk 0:01:13]}  Rac8 {[%clk 0:00:26]} 35. c6 {[%clk 0:01:13]}  e5 {[%clk 0:00:24]} 36. fxe5 {[%clk 0:01:11]}  Ne6 {[%clk 0:00:24]} 37. a4 {[%clk 0:01:11]}  Nf4 {[%clk 0:00:23]} 38. Kf1 {[%clk 0:01:07]}  Nd3 {[%clk 0:00:19]} 39. Rc2 {[%clk 0:01:05]}  Nxe5 {[%clk 0:00:19]} 40. c7 {[%clk 0:01:05]}  Rf8 {[%clk 0:00:18]} 41. b5 {[%clk 0:01:04]}  axb5 {[%clk 0:00:18]} 42. axb5 {[%clk 0:01:04]}  Ra8 {[%clk 0:00:14]} 43. b6 {[%clk 0:00:59]}  Nd3 {[%clk 0:00:09]} 44. Kg2 {[%clk 0:00:55]}  Nf4+ {[%clk 0:00:09]} 45. Kh2 {[%clk 0:00:55]}  Nd3 {[%clk 0:00:06]} 46. Bg3 {[%clk 0:00:55]}  Rae8 {[%clk 0:00:05]} 47. Rb8 {[%clk 0:00:53]} 1-0


[Site "https://www.chess.com"]

[Event "Titled Tuesday Blitz December 06 Early 2022"]
[White "Urbina Perez, Juan Antonio"]
[Black "Boros, Denes"]
[WhiteFideId "2217368"]
[BlackFideId "722340"]
[WhiteElo "2197"]
[BlackElo "2464"]
[Result "1-0"]
[Round "01"]
[TimeControl "180+1"]
[Date "2022.12.07"]
[WhiteClock "0:00:13"]
[BlackClock "0:00:01"]

1. d4 {[%clk 0:02:45]}  g6 {[%clk 0:02:45]} 2. e4 {[%clk 0:01:43]}  d5 {[%clk 0:02:39]} 3. e5 {[%clk 0:01:42]}  c5 {[%clk 0:02:38]} 4. c3 {[%clk 0:01:42]}  Nc6 {[%clk 0:02:38]} 5. h3 {[%clk 0:01:41]}  Nh6 {[%clk 0:02:37]} 6. Nf3 {[%clk 0:01:40]}  Qb6 {[%clk 0:02:33]} 7. dxc5 {[%clk 0:01:39]}  Qxc5 {[%clk 0:02:34]} 8. Be3 {[%clk 0:01:39]}  Qa5 {[%clk 0:02:35]} 9. Nbd2 {[%clk 0:01:35]}  Nf5 {[%clk 0:02:34]} 10. Bf4 {[%clk 0:01:27]}  h5 {[%clk 0:02:23]} 11. Nb3 {[%clk 0:01:27]}  Qc7 {[%clk 0:02:23]} 12. Bd3 {[%clk 0:01:26]}  Bh6 {[%clk 0:02:17]} 13. Bxh6 {[%clk 0:01:24]}  Nxh6 {[%clk 0:02:18]} 14. Qe2 {[%clk 0:01:21]}  g5 {[%clk 0:02:13]} 15. Nbd4 {[%clk 0:01:17]}  g4 {[%clk 0:02:12]} 16. hxg4 {[%clk 0:01:16]}  Bxg4 {[%clk 0:02:12]} 17. Nxc6 {[%clk 0:01:15]}  bxc6 {[%clk 0:02:12]} 18. O-O-O {[%clk 0:01:12]}  Rb8 {[%clk 0:02:05]} 19. Rde1 {[%clk 0:01:12]}  Qa5 {[%clk 0:02:04]} 20. a3 {[%clk 0:01:09]}  e6 {[%clk 0:01:58]} 21. Qc2 {[%clk 0:01:09]}  c5 {[%clk 0:01:55]} 22. Nh2 {[%clk 0:01:04]}  c4 {[%clk 0:01:53]} 23. Bh7 {[%clk 0:00:38]}  Bf5 {[%clk 0:01:22]} 24. Bxf5 {[%clk 0:00:37]}  Nxf5 {[%clk 0:01:23]} 25. g4 {[%clk 0:00:33]}  Ne7 {[%clk 0:01:15]} 26. gxh5 {[%clk 0:00:32]}  Rxh5 {[%clk 0:01:09]} 27. Ng4 {[%clk 0:00:32]}  Rxh1 {[%clk 0:01:06]} 28. Rxh1 {[%clk 0:00:33]}  Kd7 {[%clk 0:01:01]} 29. Nf6+ {[%clk 0:00:32]}  Kc6 {[%clk 0:01:02]} 30. Rh7 {[%clk 0:00:33]}  Rf8 {[%clk 0:00:59]} 31. Qd2 {[%clk 0:00:27]}  Nf5 {[%clk 0:00:56]} 32. f4 {[%clk 0:00:24]}  Qb6 {[%clk 0:00:54]} 33. Kb1 {[%clk 0:00:22]}  Qg1+ {[%clk 0:00:38]} 34. Ka2 {[%clk 0:00:22]}  Qf1 {[%clk 0:00:33]} 35. Qc2 {[%clk 0:00:21]}  Kb5 {[%clk 0:00:30]} 36. a4+ {[%clk 0:00:19]}  Ka6 {[%clk 0:00:28]} 37. a5 {[%clk 0:00:17]}  Qg1 {[%clk 0:00:24]} 38. Qa4 {[%clk 0:00:16]}  Qc5 {[%clk 0:00:16]} 39. Nd7 {[%clk 0:00:15]}  Qxa5 {[%clk 0:00:14]} 40. Qxa5+ {[%clk 0:00:15]}  Kxa5 {[%clk 0:00:15]} 41. Nxf8 {[%clk 0:00:15]}  d4 {[%clk 0:00:13]} 42. cxd4 {[%clk 0:00:14]}  Nxd4 {[%clk 0:00:14]} 43. Rxf7 {[%clk 0:00:14]}  Nc6 {[%clk 0:00:14]} 44. Rc7 {[%clk 0:00:13]}  Nb4+ {[%clk 0:00:13]} 45. Kb1 {[%clk 0:00:12]}  Nd5 {[%clk 0:00:12]} 46. Rxa7+ {[%clk 0:00:11]}  Kb6 {[%clk 0:00:12]} 47. Ra8 {[%clk 0:00:11]}  Nxf4 {[%clk 0:00:13]} 48. Re8 {[%clk 0:00:09]}  Kc6 {[%clk 0:00:11]} 49. Nxe6 {[%clk 0:00:10]}  Nd5 {[%clk 0:00:11]} 50. Rc8+ {[%clk 0:00:09]}  Kd7 {[%clk 0:00:10]} 51. Rxc4 {[%clk 0:00:05]}  Kxe6 {[%clk 0:00:11]} 52. Re4 {[%clk 0:00:05]}  Nb6 {[%clk 0:00:09]} 53. Re1 {[%clk 0:00:06]}  Na4 {[%clk 0:00:09]} 54. Ka2 {[%clk 0:00:06]}  Nc5 {[%clk 0:00:09]} 55. Ka3 {[%clk 0:00:06]}  Nd3 {[%clk 0:00:10]} 56. Re3 {[%clk 0:00:07]}  Nf4 {[%clk 0:00:07]} 57. Ka4 {[%clk 0:00:06]}  Nd5 {[%clk 0:00:08]} 58. Re1 {[%clk 0:00:05]}  Nb6+ {[%clk 0:00:08]} 59. Kb5 {[%clk 0:00:04]}  Nd5 {[%clk 0:00:09]} 60. b4 {[%clk 0:00:04]}  Ne7 {[%clk 0:00:10]} 61. Ka6 {[%clk 0:00:04]}  Nf5 {[%clk 0:00:11]} 62. b5 {[%clk 0:00:04]}  Nd4 {[%clk 0:00:12]} 63. b6 {[%clk 0:00:05]}  Nf3 {[%clk 0:00:13]} 64. Re3 {[%clk 0:00:04]}  Nd2 {[%clk 0:00:13]} 65. b7 {[%clk 0:00:04]}  Ne4 {[%clk 0:00:14]} 66. b8=Q {[%clk 0:00:04]}  Nc3 {[%clk 0:00:15]} 67. Ka7 {[%clk 0:00:04]}  Nb1 {[%clk 0:00:16]} 68. Qc8+ {[%clk 0:00:04]}  Kd5 {[%clk 0:00:16]} 69. Qb7+ {[%clk 0:00:05]}  Kd4 {[%clk 0:00:16]} 70. Qxb1 {[%clk 0:00:06]}  Kxe3 {[%clk 0:00:16]} 71. e6 {[%clk 0:00:06]}  Kd4 {[%clk 0:00:17]} 72. e7 {[%clk 0:00:06]}  Kc3 {[%clk 0:00:18]} 73. e8=Q {[%clk 0:00:07]}  Kd4 {[%clk 0:00:18]} 74. Qeb8 {[%clk 0:00:08]}  Kc4 {[%clk 0:00:19]} 75. Q8b4+ {[%clk 0:00:09]}  Kd5 {[%clk 0:00:19]} 76. Q1b3+ {[%clk 0:00:09]}  Kc6 {[%clk 0:00:19]} 77. Q3a4+ {[%clk 0:00:10]}  Kd5 {[%clk 0:00:19]} 78. Qab5+ {[%clk 0:00:10]}  Ke6 {[%clk 0:00:19]} 79. Q4c5 {[%clk 0:00:11]}  Kf7 {[%clk 0:00:03]} 80. Qcc6 {[%clk 0:00:12]}  Kg7 {[%clk 0:00:01]} 81. Qbb7+ {[%clk 0:00:13]} 1-0


[Site "https://www.chess.com"]